bitfinex-derivatives/quotes_BTCF0:USTF0_20251214
["timestamp","ask_amount","ask_price","bid_price","bid_amount"]
[1765752441162,0.001,88264.0,88263.0,0.86882999]
[1765752443365,0.001,88264.0,88263.0,0.50802999]
[1765752457374,0.48074,88264.0,88263.0,0.00516999]
[1765752457574,0.47974,88244.0,88243.0,0.2524]
[1765752457774,0.47974,88238.0,88237.0,0.6132]
[1765752458169,0.47974,88238.0,88237.0,0.3608]
[1765752458583,0.47974,88231.0,88230.0,0.01148087]
[1765752458877,0.47974,88231.0,88230.0,0.71108]
[1765752459179,0.47974,88230.0,88229.0,0.3608]
[1765752459381,0.55638,88230.0,88229.0,0.3608]
[1765752459680,0.55638,88230.0,88228.0,0.71108]
[1765752459681,0.47974,88229.0,88228.0,0.71108]
[1765752459869,0.84054,88229.0,88228.0,0.71108]
[1765752460678,0.84054,88229.0,88222.0,0.49509999]
[1765752460679,0.47974,88223.0,88222.0,0.49509999]
[1765752461370,0.47974,88223.0,88222.0,0.50642943]
[1765752461971,0.48074,88223.0,88222.0,0.50642943]
[1765752462174,0.003,88223.0,88222.0,0.50742943]
[1765752463277,0.003,88223.0,88222.0,0.90742943]
[1765752464284,0.002,88223.0,88222.0,0.90742943]
[1765752464475,0.001,88223.0,88222.0,0.90742943]
[1765752464674,0.002,88223.0,88222.0,0.91442943]
[1765752465070,0.11554906,88240.0,88222.0,0.50642943]
[1765752465274,0.24045999,88239.0,88238.0,0.49493]
[1765752465773,0.00016999,88239.0,88238.0,0.49493]
[1765752466370,0.00116999,88239.0,88238.0,0.49493]
[1765752467482,0.3608,88246.0,88245.0,0.49493]
[1765752467683,0.3608,88246.0,88245.0,0.5062611]
[1765752468888,0.47974,88239.0,88238.0,0.49593]
[1765752469090,0.47974,88239.0,88238.0,1.20609]
[1765752470080,0.47974,88239.0,88235.0,0.3608]
[1765752470282,0.14017,88242.0,88232.0,0.5062627]
[1765752470283,0.47974,88233.0,88232.0,0.5062627]
[1765752471586,0.48074,88233.0,88232.0,0.5062627]
[1765752471986,0.48174,88233.0,88232.0,0.5072627]
[1765752472187,0.48074,88233.0,88232.0,0.5072627]
[1765752472586,0.47974,88233.0,88232.0,0.49493]
[1765752472778,0.48074,88233.0,88232.0,0.001]
[1765752473884,0.48174,88233.0,88232.0,0.001]
[1765752474480,0.47974,88225.0,88224.0,0.71116]
[1765752475694,0.47974,88225.0,88224.0,1.20609]
[1765752476793,0.47974,88225.0,88224.0,0.96356]
[1765752477287,0.48074,88225.0,88224.0,0.96356]
[1765752477493,0.48174,88225.0,88224.0,0.96456]
[1765752478191,0.48074,88225.0,88224.0,0.96456]
[1765752478393,0.48174,88225.0,88224.0,0.96456]
[1765752479192,0.48174,88225.0,88224.0,0.71216]
[1765752480290,0.48174,88225.0,88224.0,0.001]
[1765752481386,0.45173,88223.0,88222.0,0.00016999]
[1765752482594,0.45173,88223.0,88222.0,0.00116999]
[1765752482595,0.45273,88223.0,88222.0,0.00116999]
[1765752484087,0.45173,88203.0,88202.0,1.08159]
[1765752484396,0.58499,88208.0,88207.0,0.62162]
[1765752484586,0.81253,88208.0,88207.0,0.62162]
[1765752484989,0.81261507,88208.0,88207.0,0.62162]
[1765752485589,0.81261507,88208.0,88207.0,0.47967]
[1765752485895,0.81261507,88208.0,88207.0,0.62162]
[1765752487196,0.81361507,88208.0,88207.0,0.62762]
[1765752487698,0.36188507,88208.0,88207.0,0.62762]
[1765752487889,0.00108507,88208.0,88207.0,0.62762]
[1765752488091,0.00108507,88208.0,88207.0,1.33886]
[1765752488290,0.00016999,88216.0,88215.0,0.491005]
[1765752488493,0.0113319,88239.0,88232.0,0.47967]
[1765752488494,0.58499,88233.0,88232.0,0.47967]
[1765752488891,0.45173,88233.0,88232.0,0.47967]
[1765752489292,0.45177906,88233.0,88232.0,0.47967]
[1765752490487,0.45377906,88233.0,88232.0,0.47967]
[1765752491601,0.45277906,88233.0,88232.0,0.47967]
[1765752491794,0.45377906,88233.0,88232.0,0.48067]
[1765752492102,0.45277906,88233.0,88232.0,0.48067]
[1765752492291,0.45377906,88233.0,88232.0,0.48067]
[1765752493406,0.45277906,88233.0,88232.0,0.47967]
[1765752493701,0.58919,88228.0,88227.0,0.3608]
[1765752494796,0.6157206,88228.0,88227.0,0.3608]
[1765752495298,0.6167206,88228.0,88227.0,0.3618]
[1765752495607,0.45173,88225.0,88211.0,0.0113354]
[1765752496397,0.85173,88225.0,88211.0,0.0113354]
[1765752496596,0.45173,88216.0,88211.0,0.0113354]
[1765752498105,0.45173,88216.0,88215.0,0.3618]
[1765752499603,0.45177906,88216.0,88215.0,0.3618]
[1765752499808,0.47932877,88216.0,88215.0,0.002]
[1765752500398,0.45173,88208.0,88207.0,0.00016999]
[1765752501804,0.45173,88208.0,88207.0,0.00316999]
[1765752503206,0.45173,88208.0,88207.0,0.00616999]
[1765752503207,0.45273,88208.0,88207.0,0.00616999]
[1765752503800,0.45273,88208.0,88207.0,0.00016999]
[1765752503801,0.45473,88208.0,88207.0,0.00016999]
[1765752503998,0.45873,88208.0,88207.0,0.00116999]
[1765752504296,0.45573,88208.0,88207.0,0.00116999]
[1765752504501,0.45973,88208.0,88207.0,0.00216999]
[1765752504802,0.46073,88208.0,88207.0,0.00216999]
[1765752505305,0.45173,88199.0,88198.0,0.3608]
[1765752505613,0.45173,88191.0,88190.0,0.3608]
[1765752507094,0.4599,88183.0,88182.0,0.49321999]
[1765752507403,0.4599,88183.0,88182.0,0.00016999]
[1765752507404,0.45994906,88183.0,88182.0,0.00016999]
[1765752508296,0.46094906,88183.0,88182.0,0.53066999]
[1765752508806,0.00104906,88183.0,88182.0,0.53066999]
[1765752509303,0.51581906,88183.0,88182.0,0.53066999]
[1765752509806,0.51781906,88183.0,88182.0,0.53166999]
[1765752512096,0.51781906,88183.0,88182.0,0.00116999]
[1765752516909,0.51781906,88183.0,88182.0,0.53166999]
[1765752517499,0.00304906,88183.0,88182.0,0.54300919]
[1765752518507,0.3608,88190.0,88189.0,0.5418383]
[1765752518707,0.3608,88190.0,88186.0,0.15775]
[1765752518708,0.00016999,88199.0,88198.0,0.5305]
[1765752521612,0.00116999,88199.0,88198.0,0.5315]
[1765752522319,0.00416999,88199.0,88198.0,0.5315]
[1765752522519,0.00516999,88199.0,88198.0,0.5325]
[1765752522718,0.51993999,88199.0,88198.0,0.5325]
[1765752522920,0.51693999,88199.0,88198.0,0.5315]
[1765752523120,0.51593999,88199.0,88198.0,0.5305]
[1765752523316,0.51693999,88199.0,88198.0,0.5315]
[1765752523521,0.51593999,88199.0,88198.0,0.5315]
[1765752524718,0.51493999,88199.0,88198.0,0.5305]
[1765752524916,0.51493999,88199.0,88198.0,0.5315]
[1765752524917,0.51593999,88199.0,88198.0,0.5315]
[1765752525511,0.51493999,88199.0,88198.0,0.5305]
[1765752525705,0.51593999,88199.0,88198.0,0.5315]
[1765752528328,0.51593999,88199.0,88198.0,0.001]
[1765752532034,0.52727699,88199.0,88198.0,0.001]
[1765752535031,0.55408902,88199.0,88198.0,0.001]
[1765752538432,0.55408902,88199.0,88198.0,0.26783]
[1765752538935,0.55408902,88199.0,88198.0,0.52661]
[1765752540625,0.55408902,88199.0,88198.0,0.001]
[1765752540836,0.55408902,88199.0,88198.0,0.52661]
[1765752541233,0.55408902,88199.0,88198.0,0.26783]
[1765752541532,0.55408902,88199.0,88198.0,0.52661]
[1765752542036,0.55408902,88199.0,88198.0,0.001]
[1765752549827,0.50505,88187.0,88186.0,0.0113387]
[1765752550036,0.86585,88187.0,88186.0,0.0113387]
[1765752550237,0.86585,88187.0,88186.0,0.5369487]
[1765752550944,0.86585,88187.0,88186.0,0.5399487]
[1765752551143,0.86685,88187.0,88186.0,0.5399487]
[1765752551339,0.86685,88187.0,88186.0,0.5419487]
[1765752554146,0.001,88187.0,88186.0,0.5419487]
[1765752554735,0.00016999,88199.0,88198.0,0.5369472]
[1765752555942,0.00116999,88199.0,88198.0,0.5379472]
[1765752559446,0.25201999,88199.0,88198.0,0.5379472]
[1765752562244,0.50621999,88199.0,88198.0,0.5379472]
[1765752563753,0.00116999,88199.0,88198.0,0.5379472]
[1765752564453,0.25201999,88199.0,88198.0,0.5379472]
[1765752564847,0.00116999,88199.0,88198.0,0.5379472]
[1765752569048,0.00116999,88199.0,88198.0,1.2489872]
[1765752573256,0.3608,88214.0,88213.0,0.50691]
[1765752575050,0.36097009,88222.0,88221.0,0.5182442]
[1765752576253,0.36297009,88222.0,88221.0,0.5182442]
[1765752576567,0.36497009,88222.0,88221.0,0.5192442]
[1765752580658,0.36497009,88222.0,88221.0,1.2301642]
[1765752584060,0.00417009,88222.0,88221.0,1.2301642]
[1765752590475,0.6080423,88240.0,88239.0,0.50691]
[1765752590770,0.49233,88240.0,88239.0,0.50691]
[1765752591865,0.49733,88240.0,88239.0,0.50791]
[1765752592274,0.50333,88240.0,88239.0,0.50891]
[1765752594366,0.64864,88240.0,88239.0,0.002]
[1765752596476,0.67528604,88240.0,88239.0,0.002]
[1765752597277,0.50833,88232.0,88231.0,0.00016999]
[1765752597474,0.86913,88232.0,88231.0,0.00016999]
[1765752598578,0.87513,88232.0,88231.0,0.00116999]
[1765752598970,0.50833,88221.0,88220.0,0.50543664]
[1765752599169,0.14533,88220.0,88214.0,0.257125]
[1765752599379,0.65366,88215.0,88214.0,0.257125]
[1765752599573,0.65366,88215.0,88214.0,0.011335]
[1765752599772,0.65366,88215.0,88205.0,0.24579]
[1765752599773,0.50833,88206.0,88205.0,0.24579]
[1765752599981,0.50833,88201.0,88200.0,0.49416]
[1765752600984,0.50833,88201.0,88197.0,0.00016999]
[1765752600985,0.50833,88198.0,88197.0,0.00016999]
[1765752601275,0.50833,88198.0,88181.0,0.3608]
[1765752601276,0.50833,88182.0,88181.0,0.49416]
[1765752601476,0.86913,88182.0,88181.0,0.24579]
[1765752602378,0.6139901,88190.0,88189.0,0.49416]
[1765752602582,0.3609701,88190.0,88189.0,0.49416]
[1765752603484,0.0001701,88190.0,88189.0,0.49416]
[1765752604277,0.0001701,88190.0,88189.0,0.49516]
[1765752604480,0.0011701,88190.0,88189.0,0.49616]
[1765752614692,0.2541901,88190.0,88189.0,0.49616]
[1765752614892,0.5095001,88190.0,88189.0,0.49616]
[1765752615594,0.5095001,88190.0,88189.0,0.24779]
[1765752615788,0.5095001,88190.0,88189.0,0.002]
[1765752616380,0.8703001,88190.0,88189.0,0.002]
[1765752617187,0.8703001,88190.0,88189.0,0.49616]
[1765752617380,0.8703001,88190.0,88189.0,0.002]
[1765752623085,0.8703001,88190.0,88189.0,0.49616]
[1765752623592,0.0011701,88190.0,88189.0,0.49616]
[1765752626299,0.3608,88198.0,88189.0,0.49616]
[1765752626300,0.3608,88198.0,88197.0,0.47499]
[1765752626598,0.3608,88198.0,88197.0,0.4863273]
[1765752627390,0.3618,88198.0,88197.0,0.4873273]
[1765752627704,0.3628,88198.0,88197.0,0.4873273]
[1765752628794,0.3618,88198.0,88197.0,0.4873273]
[1765752630101,0.001,88198.0,88197.0,0.4873273]
[1765752630300,0.4715001,88206.0,88205.0,0.47499]
[1765752631693,0.4725001,88206.0,88205.0,0.47499]
[1765752632099,0.4735001,88206.0,88205.0,0.47599]
[1765752632900,0.2471301,88206.0,88205.0,0.47599]
[1765752633203,0.0021701,88206.0,88205.0,0.4873263]
[1765752640207,0.0021701,88206.0,88205.0,1.1979663]
[1765752641296,0.3608,88219.0,88218.0,0.5700546]
[1765752642304,0.3648,88219.0,88218.0,0.5710546]
[1765752642895,0.8489,88219.0,88218.0,0.5710546]
[1765752643407,0.8489,88219.0,88218.0,0.4620046]
[1765752643606,0.4881,88219.0,88218.0,0.4620046]
[1765752643801,0.4881,88219.0,88218.0,0.6065846]
[1765752644001,0.4851,88219.0,88218.0,0.6065846]
[1765752644806,0.4881,88219.0,88218.0,0.6065846]
[1765752645904,0.004,88219.0,88218.0,0.6065846]
[1765752646106,0.001,88219.0,88218.0,0.6065846]
[1765752646307,0.002,88219.0,88218.0,0.6065846]
[1765752649698,0.2437,88219.0,88218.0,0.6065846]
[1765752651217,0.002,88219.0,88218.0,0.6065846]
[1765752655303,0.3608,88247.0,88218.0,0.6065846]
[1765752655304,0.8449,88237.0,88236.0,0.57609]
[1765752656108,0.8449,88237.0,88236.0,0.58752562]
[1765752656308,0.4931,88237.0,88236.0,0.58952562]
[1765752656708,0.8539,88237.0,88236.0,0.58952562]
[1765752657110,0.47689,88237.0,88236.0,0.60085792]
[1765752657312,0.47289,88237.0,88236.0,0.59985792]
[1765752657508,0.47489,88237.0,88236.0,0.59985792]
[1765752658117,0.46989,88237.0,88236.0,0.59885792]
[1765752658320,0.004,88237.0,88236.0,0.59985792]
[1765752659203,0.24069,88237.0,88236.0,0.59985792]
[1765752659404,0.47189,88237.0,88236.0,0.59985792]
[1765752662317,0.004,88237.0,88236.0,0.59985792]
[1765752662507,0.24069,88237.0,88236.0,0.59985792]
[1765752662806,0.47189,88237.0,88236.0,0.59985792]
[1765752664009,0.004,88237.0,88236.0,0.59985792]
[1765752664221,0.24069,88237.0,88236.0,0.59985792]
[1765752665011,0.47189,88237.0,88236.0,0.59985792]
[1765752666519,0.004,88237.0,88236.0,0.59985792]
[1765752666722,0.24069,88237.0,88236.0,0.59985792]
[1765752667116,0.004,88237.0,88236.0,0.59985792]
[1765752667326,0.24069,88237.0,88236.0,0.59985792]
[1765752668724,0.004,88237.0,88236.0,0.59985792]
[1765752672720,0.82869,88260.0,88259.0,0.44932]
[1765752673929,0.82869,88260.0,88259.0,0.45032]
[1765752673930,0.82969,88260.0,88259.0,0.45032]
[1765752675217,0.82869,88260.0,88259.0,0.44932]
[1765752675529,0.82869,88260.0,88259.0,0.45032]
[1765752676627,0.96315,88260.0,88259.0,0.001]
[1765752677027,0.96315,88260.0,88259.0,0.22971]
[1765752677327,0.96315,88260.0,88259.0,0.45032]
[1765752677828,0.82869,88260.0,88259.0,0.45032]
[1765752678518,0.82869,88260.0,88259.0,0.44932]
[1765752678519,0.3618,88260.0,88259.0,0.44932]
[1765752678727,0.3618,88260.0,88259.0,0.45032]
[1765752679226,0.3608,88260.0,88259.0,0.45132]
[1765752679531,0.05,88274.0,88259.0,0.45132]
[1765752679532,0.51789,88274.0,88273.0,0.44932]
[1765752681518,0.52089,88274.0,88273.0,0.45032]
[1765752681724,0.52289,88274.0,88273.0,0.45032]
[1765752684533,0.52289,88274.0,88273.0,0.22971]
[1765752684735,0.52289,88274.0,88273.0,0.001]
[1765752686139,0.52289,88274.0,88273.0,0.22971]
[1765752686333,0.52289,88274.0,88273.0,0.001]
[1765752688332,0.52289,88274.0,88273.0,0.43341]
[1765752690329,0.055,88274.0,88273.0,0.43341]
[1765752690729,0.28565,88274.0,88273.0,0.43341]
[1765752690929,0.51074,88274.0,88273.0,0.43341]
[1765752691123,0.28565,88274.0,88273.0,0.43341]
[1765752691337,0.51074,88274.0,88273.0,0.43341]
[1765752693622,0.055,88274.0,88273.0,0.43341]
[1765752696640,0.28565,88274.0,88273.0,0.43341]
[1765752697344,0.51074,88274.0,88273.0,0.43341]
[1765752698241,0.28565,88274.0,88273.0,0.43341]
[1765752698632,0.51074,88274.0,88273.0,0.43341]
[1765752703135,0.055,88274.0,88273.0,0.43341]
[1765752704044,0.81654,88294.0,88293.0,0.44288]
[1765752704342,0.81654,88294.0,88293.0,1.15264]
[1765752704543,0.81654,88294.0,88293.0,1.163965]
[1765752705542,0.81654,88294.0,88293.0,1.164965]
[1765752705745,0.81654,88294.0,88293.0,1.17611143]
[1765752705746,0.3608,88294.0,88293.0,1.17611143]
[1765752705944,0.3608,88294.0,88293.0,1.17711143]
[1765752707347,0.81654,88305.0,88304.0,0.44288]
[1765752707536,0.81654,88305.0,88304.0,1.1526]
[1765752708644,0.81754,88305.0,88304.0,1.1526]
[1765752708840,0.81954,88305.0,88304.0,1.1536]
[1765752710350,0.45874,88305.0,88304.0,1.1536]
[1765752710947,0.3608,88317.0,88304.0,1.1536]
[1765752710948,0.3608,88317.0,88316.0,0.44288]
[1765752711140,0.08098878,88349.0,88316.0,0.44288]
[1765752711141,0.81654,88335.0,88334.0,0.44288]
[1765752711345,0.8433828,88335.0,88334.0,0.44288]
[1765752711645,0.8433828,88335.0,88331.0,1.15252]
[1765752711646,0.45574,88332.0,88331.0,1.15252]
[1765752712950,0.46074,88332.0,88331.0,1.15352]
[1765752713543,0.59362,88332.0,88331.0,0.71056]
[1765752713738,0.59362,88332.0,88331.0,0.001]
[1765752714353,0.59662,88332.0,88331.0,0.001]
[1765752715947,0.23865,88332.0,88331.0,0.44388]
[1765752716147,0.46374,88332.0,88331.0,0.44388]
[1765752717453,0.23865,88332.0,88331.0,0.44388]
[1765752717648,0.46864,88332.0,88331.0,0.44388]
[1765752718658,0.46764,88332.0,88331.0,0.001]
[1765752719050,0.82844,88332.0,88331.0,0.001]
[1765752719749,0.82544,88332.0,88331.0,0.001]
[1765752719945,0.82744,88332.0,88331.0,0.001]
[1765752724262,0.44886,88327.0,88326.0,0.00016989]
[1765752725362,0.4601806,88327.0,88326.0,0.00016989]
[1765752725562,0.4631806,88327.0,88326.0,0.00116989]
[1765752725961,0.4641806,88327.0,88326.0,0.00116989]
[1765752732660,0.4641806,88327.0,88326.0,0.22216989]
[1765752732866,0.4641806,88327.0,88326.0,0.00116989]
[1765752734071,0.49088407,88327.0,88326.0,0.00116989]
[1765752740765,0.85168407,88327.0,88326.0,0.43256989]
[1765752740971,0.84036347,88327.0,88326.0,0.43256989]
[1765752742567,0.84036347,88327.0,88326.0,0.56663989]
[1765752743267,0.84036347,88327.0,88326.0,0.43256989]
[1765752743862,0.84036347,88327.0,88326.0,0.56663989]
[1765752746270,0.84036347,88327.0,88326.0,0.43256989]
[1765752752372,0.81366,88327.0,88326.0,0.43256989]
[1765752772788,0.45286,88327.0,88326.0,0.43256989]
[1765752775495,0.45186,88327.0,88326.0,0.43256989]
[1765752775802,0.45286,88327.0,88326.0,0.43256989]
[1765752776498,0.22287,88327.0,88326.0,0.43256989]
[1765752776805,0.004,88327.0,88326.0,0.43256989]
[1765752777504,0.75888,88343.0,88342.0,0.40673]
[1765752777700,0.78543251,88343.0,88342.0,0.40673]
[1765752778608,0.75888,88343.0,88342.0,0.40673]
[1765752778823,0.78542119,88343.0,88342.0,0.40873]
[1765752779108,0.78542119,88343.0,88342.0,0.42001626]
[1765752779297,0.75888,88343.0,88342.0,0.42001626]
[1765752779696,0.3608,88343.0,88342.0,0.42001626]
[1765752780207,0.18216881,88368.0,88362.0,0.40673]
[1765752780208,0.4093961,88363.0,88362.0,0.40673]
[1765752780394,0.43593504,88363.0,88362.0,0.40673]
[1765752781495,0.43793504,88363.0,88362.0,0.40673]
[1765752782702,0.44193504,88363.0,88362.0,0.19889]
[1765752783100,0.4153961,88363.0,88362.0,0.19889]
[1765752783300,0.4147362,88363.0,88362.0,0.19889]
[1765752783908,0.4147362,88363.0,88362.0,0.40773]
[1765752784904,0.4147362,88363.0,88362.0,0.001]
[1765752786908,0.4147362,88363.0,88362.0,0.19889]
[1765752787108,0.4147362,88363.0,88362.0,0.001]
[1765752787309,0.51505,88355.0,88354.0,0.00016979]
[1765752788416,0.51705,88355.0,88354.0,0.00016979]
[1765752799220,0.0113173,88353.0,88345.0,0.40673]
[1765752799414,0.11897,88355.0,88342.0,0.42924626]
[1765752799415,0.39808,88343.0,88342.0,0.42924626]
[1765752799812,0.39808,88343.0,88342.0,0.20917626]
[1765752800008,0.39808,88343.0,88342.0,0.01128626]
[1765752800316,0.51505,88340.0,88334.0,0.00016979]
[1765752801421,0.51505,88340.0,88339.0,0.3618]
[1765752802122,0.51605,88340.0,88339.0,0.3618]
[1765752802622,0.87685,88340.0,88339.0,0.001]
[1765752803118,0.39808,88336.0,88335.0,0.01142403]
[1765752803422,0.51222,88335.0,88334.0,0.00016979]
[1765752804916,0.51222,88335.0,88334.0,0.00116979]
[1765752805116,0.51422,88335.0,88334.0,0.00116979]
[1765752805517,0.51422,88335.0,88334.0,0.00016979]
[1765752806415,0.39471,88328.0,88327.0,0.01120862]
[1765752806619,0.39471,88328.0,88326.0,0.0113207]
[1765752806814,0.39159,88327.0,88326.0,0.0113207]
[1765752807015,0.11372,88330.0,88322.0,0.70876]
[1765752807016,0.39159,88323.0,88322.0,0.70876]
[1765752807820,0.39159,88323.0,88322.0,0.7202218]
[1765752808616,0.39159,88323.0,88322.0,0.0134618]
[1765752808839,0.4029111,88323.0,88322.0,0.002]
[1765752809218,0.38673,88315.0,88314.0,0.40316979]
[1765752809723,0.38673,88315.0,88314.0,0.41439537]
[1765752810525,0.49997,88315.0,88314.0,0.01139537]
[1765752811518,0.49997,88315.0,88314.0,0.00016979]
[1765752811721,0.38673,88302.0,88301.0,0.3608]
[1765752812118,0.38673,88302.0,88301.0,0.55611]
[1765752812318,0.38673,88302.0,88301.0,0.7638]
[1765752812622,0.38673,88302.0,88301.0,0.37197464]
[1765752813023,0.38673,88302.0,88301.0,0.37397464]
[1765752813226,0.38673,88302.0,88301.0,0.3628]
[1765752814131,0.38773,88302.0,88301.0,0.3628]
[1765752814314,0.38773,88302.0,88301.0,0.7638]
[1765752814519,0.38773,88302.0,88301.0,0.7648]
[1765752815526,0.38773,88302.0,88301.0,0.7638]
[1765752815712,0.38773,88302.0,88301.0,0.7658]
[1765752816127,0.38673,88302.0,88301.0,0.7658]
[1765752816333,0.38773,88302.0,88301.0,0.7658]
[1765752816926,0.38673,88302.0,88301.0,0.7658]
[1765752823031,0.38673,88302.0,88301.0,0.7668]
[1765752823935,0.38673,88302.0,88301.0,0.405]
[1765752825331,0.38673,88302.0,88301.0,0.406]
[1765752827130,0.19656,88302.0,88301.0,0.404]
[1765752827327,0.38673,88302.0,88301.0,0.406]
[1765752828037,0.38673,88302.0,88301.0,0.404]
[1765752828233,0.38673,88302.0,88301.0,0.406]
[1765752828935,0.38673,88302.0,88301.0,1.11496]
[1765752829537,0.38689979,88310.0,88309.0,0.403]
[1765752831340,0.38789979,88310.0,88309.0,0.404]
[1765752835541,0.38789979,88310.0,88309.0,0.4153229]
[1765752835846,0.38689979,88310.0,88309.0,0.4153229]
[1765752836341,0.38689979,88310.0,88309.0,0.4163229]
[1765752836844,0.38689979,88310.0,88309.0,0.4143229]
[1765752837032,0.38689979,88310.0,88309.0,0.4153229]
[1765752837738,0.38789979,88310.0,88309.0,0.4153229]
[1765752838434,0.19772979,88310.0,88309.0,0.4153229]
[1765752839237,0.00116979,88310.0,88309.0,0.4153229]
[1765752839440,0.39423979,88310.0,88309.0,0.4143229]
[1765752839636,0.39423979,88310.0,88309.0,0.4163229]
[1765752840430,0.39323979,88310.0,88309.0,0.4163229]
[1765752841339,0.39323979,88310.0,88309.0,0.4173229]
[1765752841639,0.19483979,88310.0,88309.0,0.4173229]
[1765752841942,0.00016979,88310.0,88309.0,0.4173229]
[1765752842143,0.19483979,88310.0,88309.0,0.4173229]
[1765752842343,0.39323979,88310.0,88309.0,0.4173229]
[1765752844346,0.00016979,88310.0,88309.0,0.4173229]
[1765752845041,0.3608,88319.0,88318.0,0.3834518]
[1765752845245,0.3608,88319.0,88318.0,1.0923318]
[1765752845840,0.75387,88319.0,88318.0,1.0923318]
[1765752846439,0.75587,88319.0,88318.0,1.0923318]
[1765752847137,0.55747,88319.0,88318.0,1.0923318]
[1765752848750,0.19667,88319.0,88318.0,1.0923318]
[1765752852649,0.002,88319.0,88318.0,1.0923318]
[1765752852952,0.19667,88319.0,88318.0,1.0923318]
[1765752854151,0.002,88319.0,88318.0,1.0923318]
[1765752854347,0.19667,88319.0,88318.0,1.0923318]
[1765752856654,0.19622128,88319.0,88318.0,1.0923318]
[1765752857954,0.00155128,88319.0,88318.0,1.0923318]
[1765752860254,0.19622128,88319.0,88318.0,1.0923318]
[1765752860448,0.00155128,88319.0,88318.0,1.0923318]
[1765752862154,0.19622128,88319.0,88318.0,1.0923318]
[1765752862354,0.00155128,88319.0,88318.0,1.0923318]
[1765752866850,0.00016979,88327.0,88326.0,0.37311]
[1765752866851,0.19483979,88327.0,88326.0,0.37311]
[1765752867061,0.54791,88330.0,88329.0,0.36787]
[1765752867261,0.73157,88330.0,88329.0,0.36787]
[1765752868254,0.73357,88330.0,88329.0,0.36787]
[1765752868963,0.73757,88330.0,88329.0,0.36887]
[1765752869763,0.37677,88330.0,88329.0,0.36887]
[1765752870054,0.006,88330.0,88329.0,0.36887]
[1765752870947,0.002,88330.0,88329.0,0.36987]
[1765752871363,0.38183879,88338.0,88337.0,0.37455]
[1765752871563,0.38183879,88338.0,88337.0,1.08323]
[1765752872261,0.38183879,88338.0,88337.0,1.0945493]
[1765752872655,0.38183879,88338.0,88337.0,1.0975493]
[1765752877370,0.18630879,88338.0,88337.0,1.0975493]
[1765752877568,0.00016879,88338.0,88337.0,1.0975493]
[1765752885362,0.74247,88354.0,88353.0,0.37455]
[1765752885562,0.74247,88354.0,88353.0,1.08307]
[1765752886966,0.74547,88354.0,88353.0,1.08307]
[1765752887878,0.74647,88354.0,88353.0,1.08307]
[1765752888266,0.74647,88354.0,88353.0,1.09429423]
[1765752889079,0.74347,88354.0,88353.0,1.09429423]
[1765752889276,0.74547,88354.0,88353.0,1.09429423]
[1765752889773,0.38467,88354.0,88353.0,1.09429423]
[1765752889975,0.74547,88354.0,88353.0,1.09429423]
[1765752890779,0.74447,88354.0,88353.0,1.09429423]
[1765752900380,0.37014,88346.0,88345.0,0.00016979]
[1765752900584,0.73094,88346.0,88345.0,0.00016979]
[1765752901886,0.73094,88346.0,88345.0,0.00116979]
[1765752902182,0.37014,88331.0,88330.0,0.49728306]
[1765752902485,0.73094,88331.0,88330.0,1.07901]
[1765752903485,0.73094,88331.0,88330.0,1.0904726]
[1765752904375,0.73094,88331.0,88330.0,1.0954726]
[1765752905184,0.3814611,88323.0,88322.0,0.00016979]
[1765752905379,0.37014,88312.0,88311.0,0.71143182]
[1765752905682,0.73094,88312.0,88311.0,0.90283182]
[1765752905886,0.73094,88312.0,88311.0,0.71143182]
[1765752906774,0.73094,88312.0,88311.0,0.72246253]
[1765752906980,0.37014,88312.0,88311.0,1.09458523]
[1765752907980,0.37030979,88320.0,88319.0,0.37065]
[1765752908187,0.19286979,88320.0,88319.0,0.37065]
[1765752908787,0.37030979,88320.0,88319.0,0.37065]
[1765752910482,0.37030979,88320.0,88319.0,0.37265]
[1765752910690,0.37030979,88320.0,88319.0,0.37465]
[1765752913085,0.00016979,88320.0,88319.0,0.37265]
[1765752913682,0.00016979,88320.0,88319.0,0.37165]
[1765752913988,0.37030979,88320.0,88319.0,0.37265]
[1765752914192,0.37030979,88320.0,88319.0,0.37465]
[1765752914788,0.37030979,88320.0,88319.0,0.37265]
[1765752914988,0.37030979,88320.0,88319.0,0.37465]
[1765752915994,0.37030979,88320.0,88319.0,0.37265]
[1765752916380,0.37030979,88320.0,88319.0,0.37465]
[1765752916588,0.37030979,88320.0,88319.0,0.37265]
[1765752916787,0.37030979,88320.0,88319.0,0.37465]
[1765752916988,0.37030979,88320.0,88319.0,0.37265]
[1765752917196,0.37030979,88320.0,88319.0,0.37465]
[1765752919801,0.37030979,88320.0,88319.0,1.08313]
[1765752920895,0.37030979,88320.0,88319.0,1.08113]
[1765752921096,0.37030979,88320.0,88319.0,1.08313]
[1765752924520,0.00016979,88320.0,88319.0,1.08313]
[1765752925310,0.19286979,88320.0,88319.0,1.08313]
[1765752926022,0.00016979,88320.0,88319.0,1.08313]
[1765752926319,0.37181979,88320.0,88319.0,1.08313]
[1765752935027,0.19286979,88320.0,88319.0,1.08313]
[1765752936031,0.37043979,88320.0,88319.0,1.08313]
[1765752936928,0.37043979,88320.0,88319.0,1.08113]
[1765752937129,0.37043979,88320.0,88319.0,1.08313]
[1765752938536,0.37043979,88320.0,88319.0,1.07913]
[1765752938725,0.37043979,88320.0,88319.0,1.08413]
[1765752939435,0.37043979,88320.0,88319.0,1.08213]
[1765752939634,0.37043979,88320.0,88319.0,1.08413]
[1765752939835,0.37043979,88320.0,88319.0,1.08113]
[1765752940137,0.37043979,88320.0,88319.0,1.08213]
[1765752940437,0.37043979,88320.0,88319.0,1.08413]
[1765752941425,0.37043979,88320.0,88319.0,1.08113]
[1765752941640,0.37043979,88320.0,88319.0,1.08413]
[1765752942540,0.37043979,88320.0,88319.0,1.08213]
[1765752942729,0.37043979,88320.0,88319.0,1.08413]
[1765752942930,0.19286979,88320.0,88319.0,1.08413]
[1765752943339,0.37043979,88320.0,88319.0,1.08213]
[1765752943539,0.37043979,88320.0,88319.0,1.08413]